fUSD/lending_fUSD_20250812
["ID","MTS","AMOUNT","RATE_DAILY","PERIOD"]
[378690149,1754958740402,-416.54,0.00021925,2]
[378690150,1754958740411,-448.0,0.00021925,2]
[378690151,1754958740420,-434.77,0.00021925,2]
[378690152,1754958740429,-428.67,0.00021925,2]
[378690153,1754958740439,-1026.25,0.00021925,2]
[378690154,1754958740449,-855.22,0.00021925,2]
[378690155,1754958740458,-527.94,0.00021925,2]
[378690156,1754958740468,-690.8,0.00021925,2]
[378690157,1754958740478,-660.29,0.00021925,2]
[378690158,1754958740488,-661.7,0.00021925,2]
[378690159,1754958740497,-553.06,0.00021925,2]
[378690160,1754958740507,-485.52,0.00021925,2]
[378690161,1754958740518,-689.02,0.00021925,2]
[378690162,1754958740527,-1107.19,0.00021934,2]
[378690163,1754958740538,-646.57,0.00021934,2]
[378690164,1754958740548,-739.29,0.00021934,2]
[378690165,1754958740557,-541.35,0.00021934,2]
[378690166,1754958740567,-756.83,0.00021934,2]
[378690167,1754958740576,-540.43,0.00021934,2]
[378690168,1754958740586,-880.76,0.00021934,2]
[378690169,1754958740595,-1331.32,0.00021934,2]
[378690170,1754958740605,-1152.75,0.00021934,2]
[378690171,1754958740614,-1103.08,0.00021934,2]
[378690172,1754958740624,-673.98,0.00021934,2]
[378690173,1754958740634,-667.16,0.00021934,2]
[378690174,1754958740644,-1238.08,0.00021934,2]
[378690175,1754958740653,-723.65,0.00021934,2]
[378690176,1754958740662,-741.47,0.00021934,2]
[378690177,1754958740671,-1093.69,0.00021934,2]
[378690178,1754958740680,-5867.06,0.00021934,2]
[378690179,1754958740690,-810.42,0.00021935,2]
[378690180,1754958740700,-904.99,0.00021988,2]
[378690181,1754958740709,-15632.92386014,0.0002199,2]
[378690182,1754958740718,-4611.10420331,0.00022,2]
[378690183,1754958740728,-2299.999999,0.00022,4]
[378690184,1754958740738,-360408.76568766,0.00022,4]
[378690185,1754958740748,-777.2415269,0.00022,7]
[378690186,1754958740758,-500.0,0.00022,2]
[378690187,1754958740770,-300.0,0.00022,2]
[378690188,1754958740779,-400.0,0.00022,2]
[378690189,1754958740789,-2110.0,0.00022,2]
[378690190,1754958740800,-404.14,0.00022,2]
[378690191,1754958740812,-400.0,0.00022018,2]
[378690192,1754958740822,-5826.88,0.00022062,2]
[378690193,1754958740832,-900.0,0.00022096,2]
[378690194,1754958740842,-1300.0,0.00022096,2]
[378690195,1754958740851,-200.0,0.000221,7]
[378690196,1754958740863,-235.09376092,0.0002211,2]
[378690197,1754958740873,-1353.75,0.00022185,2]
[378690198,1754958740883,-1368.73,0.00022185,2]
[378690199,1754958740893,-835.27,0.00022185,2]
[378690200,1754958740903,-638.05,0.00022185,2]
[378690201,1754958740912,-1206.42,0.00022185,2]
[378690202,1754958740923,-8653.14,0.00022185,2]
[378690203,1754958740932,-155.1567041,0.00022192,2]
[378690204,1754958740942,-500.0,0.00022192,2]
[378690205,1754958740952,-150.0,0.00022192,2]
[378690206,1754958740962,-594.7,0.00022197,2]
[378690207,1754958740972,-541.43,0.00022197,2]
[378690208,1754958740981,-586.31,0.00022197,2]
[378690209,1754958740992,-445.65,0.00022197,2]
[378690210,1754958741001,-400.0,0.00022197,2]
[378690211,1754958741011,-555.3,0.00022197,2]
[378690212,1754958741020,-455.46,0.00022197,2]
[378690213,1754958741030,-528.53,0.00022197,2]
[378690214,1754958741039,-808.45,0.00022197,2]
[378690215,1754958741049,-600.96,0.00022197,2]
[378690216,1754958741059,-400.0,0.00022197,2]
[378690217,1754958741071,-482.19,0.00022197,2]
[378690218,1754958741085,-611.02,0.00022197,2]
[378690219,1754958741096,-409.66,0.00022197,2]
[378690220,1754958741108,-800.99,0.00022197,2]
[378690221,1754958741118,-574.72,0.00022197,2]
[378690222,1754958741127,-820.43,0.00022197,2]
[378690223,1754958741136,-565.37,0.00022197,2]
[378690224,1754958741146,-978.66,0.00022197,2]
[378690225,1754958741155,-573.02,0.00022197,2]
[378690226,1754958741164,-1278.03,0.00022197,2]
[378690227,1754958741173,-539.9,0.00022197,2]
[378690228,1754958741183,-422.09,0.00022197,2]
[378690229,1754958741192,-683.8,0.00022197,2]
[378690230,1754958741201,-1082.91,0.00022197,2]
[378690231,1754958741210,-367.77390297,0.00022197,2]
[378690232,1754958741220,-592.11,0.00022197,2]
[378690233,1754958741230,-400.0,0.00022197,2]
[378690234,1754958741240,-1009.96,0.00022197,2]
[378690235,1754958741249,-487.32,0.00022197,2]
[378690236,1754958741258,-480.66,0.00022197,2]
[378690237,1754958741270,-471.77,0.00022197,2]
[378690238,1754958741287,-405.23,0.00022197,2]
[378690239,1754958741296,-446.06,0.00022197,2]
[378690240,1754958741306,-482.58,0.00022197,2]
[378690241,1754958741315,-1964.74,0.00022197,2]
[378690242,1754958741324,-591.6,0.00022197,2]
[378690243,1754958741334,-406.85,0.00022197,2]
[378690244,1754958741344,-632.96,0.00022197,2]
[378690245,1754958741353,-618.38,0.00022197,2]
[378690246,1754958741363,-530.30486229,0.00022197,2]
[378690247,1754958741372,-448.94,0.00022197,2]
[378690248,1754958741381,-2118.04,0.00022197,2]
[378690249,1754958741391,-1807.34,0.00022197,2]
[378690250,1754958741401,-466.30086516,0.00022197,2]
[378690251,1754958741410,-927.74,0.00022197,2]
[378690252,1754958741420,-609.57,0.00022197,2]
[378690253,1754958741429,-936.33,0.00022197,2]
[378690254,1754958741439,-1290.89,0.00022197,2]
[378690255,1754958741449,-977.28,0.00022197,2]
[378690256,1754958741458,-417.25,0.00022197,2]
[378690257,1754958741467,-833.05,0.00022197,2]
[378690258,1754958741476,-498.28,0.00022197,2]
[378690259,1754958741486,-543.52,0.00022199,2]
[378690260,1754958741495,-3558.75,0.00022199,2]
[378690261,1754958741505,-415.04,0.00022199,2]
[378690262,1754958741514,-525.29790299,0.00022199,2]
[378690263,1754958741523,-541.87,0.00022199,2]
[378690264,1754958741532,-686.48,0.00022199,2]
[378690265,1754958741542,-843.54,0.00022199,2]
[378690266,1754958741552,-501.49,0.00022199,2]
[378690267,1754958741561,-411.31,0.00022199,2]
[378690268,1754958741571,-416.82,0.00022199,2]
[378690269,1754958741580,-674.0,0.00022199,2]
[378690270,1754958741760,-412.88,0.00022199,2]
[378690271,1754958741770,-400.0,0.00022199,2]
[378690272,1754958741779,-435.86,0.00022199,2]
[378690273,1754958741788,-941.84,0.00022199,2]
[378690274,1754958741797,-415.91,0.00022199,2]
[378690275,1754958741807,-1018.78,0.00022199,2]
[378690276,1754958741819,-716.34,0.00022199,2]
[378690277,1754958741828,-806.63,0.00022199,2]
[378690278,1754958741837,-467.60264179,0.00022199,2]
[378690279,1754958741846,-403.05,0.00022199,2]
[378690280,1754958741855,-487.36,0.00022199,2]
[378690281,1754958741865,-381.02262854,0.00022199,2]
[378690282,1754958741875,-406.99,0.00022199,2]
[378690283,1754958741885,-924.79,0.00022199,2]
[378690284,1754958741896,-896.54,0.00022199,2]
[378690285,1754958741906,-400.0,0.00022199,2]
[378690286,1754958741916,-333.32911764,0.00022199,2]
[378690287,1754958741925,-989.5,0.00022199,2]
[378690288,1754958741935,-429.77,0.00022199,2]
[378690289,1754958741944,-446.06,0.00022199,2]
[378690290,1754958741954,-451.58,0.00022199,2]
[378690291,1754958741963,-840.46,0.00022199,2]
[378690292,1754958741972,-5484.25,0.00022199,2]
[378690293,1754958741982,-444.43,0.00022199,2]
[378690294,1754958741992,-1135.69,0.00022199,2]
[378690295,1754958742001,-473.46,0.00022199,2]
[378690296,1754958742011,-504.02,0.00022199,2]
[378690297,1754958742020,-425.72,0.00022199,2]
[378690298,1754958742029,-562.93,0.00022199,2]
[378690299,1754958742038,-485.33,0.00022199,2]
[378690300,1754958742048,-467.903491,0.00022199,2]
[378690301,1754958742058,-716.05,0.00022199,2]
[378690302,1754958742067,-409.81,0.00022199,2]
[378690303,1754958742076,-1367.17,0.00022199,2]
[378690304,1754958742086,-418.15,0.00022199,2]
[378690305,1754958742095,-487.67,0.00022199,2]
[378690306,1754958742105,-463.33,0.00022199,2]
[378690307,1754958742114,-1005.19,0.00022199,2]
[378690308,1754958742123,-456.21,0.00022199,2]
[378690309,1754958742132,-760.85,0.00022199,2]
[378690310,1754958742142,-461.28,0.00022199,2]
[378690311,1754958742152,-415.53,0.00022199,2]
[378690312,1754958742162,-668.63,0.00022199,2]
[378690313,1754958742171,-1056.23,0.00022199,2]
[378690314,1754958742180,-211.76583398,0.00022199,2]
[378690315,1754958742190,-401.8,0.00022199,2]
[378690316,1754958742199,-216.52293463,0.00022199,2]
[378690317,1754958742208,-1254.99,0.00022199,2]
[378690318,1754958742218,-416.54,0.00022199,2]
[378690319,1754958742227,-448.0,0.00022199,2]
[378690320,1754958742238,-434.77,0.00022199,2]
[378690321,1754958742247,-428.67,0.00022199,2]
[378690322,1754958742257,-1026.25,0.00022199,2]
[378690323,1754958742266,-855.22,0.00022199,2]
[378690324,1754958742275,-527.94,0.00022199,2]
[378690325,1754958742285,-690.8,0.00022199,2]
[378690326,1754958742294,-660.29,0.00022199,2]
[378690327,1754958742303,-661.7,0.00022199,2]
[378690328,1754958742312,-553.06,0.00022199,2]
[378690329,1754958742322,-689.02,0.00022199,2]
[378690330,1754958742331,-485.52,0.00022199,2]
[378690331,1754958742341,-1107.19,0.00022208,2]
[378690332,1754958742351,-646.57,0.00022208,2]
[378690333,1754958742360,-739.29,0.00022208,2]
[378690334,1754958742370,-541.35,0.00022208,2]
[378690335,1754958742388,-756.83,0.00022208,2]
[378690336,1754958742398,-540.43,0.00022208,2]
[378690337,1754958742407,-880.76,0.00022208,2]
[378690338,1754958742416,-1331.32,0.00022208,2]
[378690339,1754958742426,-1152.75,0.00022208,2]
[378690340,1754958742435,-1103.08,0.00022208,2]
[378690341,1754958742446,-673.98,0.00022208,2]
[378690342,1754958742456,-667.16,0.00022208,2]
[378690343,1754958742465,-1238.08,0.00022208,2]
[378690344,1754958742475,-723.65,0.00022208,2]
[378690345,1754958742485,-741.47,0.00022208,2]
[378690346,1754958742494,-1093.69,0.00022208,2]
[378690347,1754958742504,-5867.06,0.00022208,2]
[378690348,1754958742513,-810.42,0.00022209,2]
[378690349,1754958742522,-500.0,0.0002222,2]
[378690350,1754958742533,-16328.02581697,0.0002223,2]
[378690351,1754958742547,-195.0,0.00022274,6]
[378690352,1754958742556,-510.21067851,0.00022292,2]
[378690353,1754958742566,-500.0,0.0002237,2]
[378690354,1754958742576,-1353.75,0.00022459,2]
[378690355,1754958742586,-1368.73,0.00022459,2]
[378690356,1754958742595,-835.27,0.00022459,2]
[378690357,1754958742605,-638.05,0.00022459,2]
[378690358,1754958742614,-1206.42,0.00022459,2]
[378690359,1754958742624,-8653.14,0.00022459,2]
[378690360,1754958742633,-500.0,0.00022466,2]
[378690361,1754958742643,-254.37922536,0.00022466,2]
[378690362,1754958742653,-187.78006525,0.00022466,2]
[378690363,1754958742662,-594.7,0.00022471,2]
[378690364,1754958742671,-541.43,0.00022471,2]
[378690365,1754958742680,-586.31,0.00022471,2]
[378690366,1754958742689,-445.65,0.00022471,2]
[378690367,1754958742698,-154.40589551,0.00022471,2]
[378690368,1754958742708,-555.3,0.00022471,2]
[378690369,1754958742717,-455.46,0.00022471,2]
[378690370,1754958742726,-528.53,0.00022471,2]
[378690371,1754958742736,-808.45,0.00022471,2]
[378690372,1754958742746,-600.96,0.00022471,2]
[378690373,1754958742756,-214.31126637,0.00022471,2]
[378690374,1754958742766,-482.19,0.00022471,2]
[378690375,1754958742775,-611.02,0.00022471,2]
[378690376,1754958742784,-409.66,0.00022471,2]
[378690377,1754958742794,-800.99,0.00022471,2]
[378690378,1754958742804,-574.72,0.00022471,2]
[378690379,1754958742817,-820.43,0.00022471,2]
[378690380,1754958742826,-565.37,0.00022471,2]
[378690381,1754958742836,-978.66,0.00022471,2]
[378690382,1754958742845,-573.02,0.00022471,2]
[378690383,1754958742855,-1278.03,0.00022471,2]
[378690384,1754958742865,-539.9,0.00022471,2]
[378690385,1754958742875,-422.09,0.00022471,2]
[378690386,1754958742884,-683.8,0.00022471,2]
[378690387,1754958742894,-1082.91,0.00022471,2]
[378690388,1754958742905,-592.11,0.00022471,2]
[378690389,1754958742914,-396.09329047,0.00022471,2]
[378690390,1754958742924,-1009.96,0.00022471,2]
[378690391,1754958742933,-487.32,0.00022471,2]
[378690392,1754958742943,-480.66,0.00022471,2]
[378690393,1754958742952,-471.77,0.00022471,2]
[378690394,1754958742961,-405.23,0.00022471,2]
[378690395,1754958742971,-446.06,0.00022471,2]
[378690396,1754958742980,-482.58,0.00022471,2]
[378690397,1754958742991,-1964.74,0.00022471,2]
[378690398,1754958743001,-591.6,0.00022471,2]
[378690399,1754958743010,-406.85,0.00022471,2]
[378690400,1754958743020,-632.96,0.00022471,2]
[378690401,1754958743030,-618.38,0.00022471,2]
[378690402,1754958743040,-448.94,0.00022471,2]
[378690403,1754958743049,-2118.04,0.00022471,2]
[378690404,1754958743058,-1807.34,0.00022471,2]
[378690405,1754958743067,-927.74,0.00022471,2]
[378690406,1754958743076,-609.57,0.00022471,2]
[378690407,1754958743085,-936.33,0.00022471,2]
[378690408,1754958743095,-1290.89,0.00022471,2]
[378690409,1754958743104,-977.28,0.00022471,2]
[378690410,1754958743113,-417.25,0.00022471,2]
[378690411,1754958743122,-833.05,0.00022471,2]
[378690412,1754958743132,-498.28,0.00022471,2]
[378690413,1754958743142,-543.52,0.00022473,2]
[378690414,1754958743151,-3558.75,0.00022473,2]
[378690415,1754958743160,-415.04,0.00022473,2]
[378690416,1754958743168,-541.87,0.00022473,2]
[378690417,1754958743178,-686.48,0.00022473,2]
[378690418,1754958743187,-843.54,0.00022473,2]
[378690419,1754958743196,-501.49,0.00022473,2]
[378690420,1754958743206,-411.31,0.00022473,2]
[378690421,1754958743215,-416.82,0.00022473,2]
[378690422,1754958743224,-674.0,0.00022473,2]
[378690423,1754958743232,-412.88,0.00022473,2]
[378690424,1754958743242,-422.03903322,0.00022473,2]
[378690425,1754958743251,-435.86,0.00022473,2]
[378690426,1754958743260,-941.84,0.00022473,2]
[378690427,1754958743269,-415.91,0.00022473,2]
[378690428,1754958743279,-1018.78,0.00022473,2]
[378690429,1754958743288,-716.34,0.00022473,2]
[378690430,1754958743297,-806.63,0.00022473,2]
[378690431,1754958743306,-403.05,0.00022473,2]
[378690432,1754958743315,-487.36,0.00022473,2]
[378690433,1754958743324,-406.99,0.00022473,2]
[378690434,1754958743334,-924.79,0.00022473,2]
[378690435,1754958743343,-299.61664718,0.00022473,2]
[378690436,1754958743352,-896.54,0.00022473,2]
[378690437,1754958743361,-989.5,0.00022473,2]
[378690438,1754958743371,-429.77,0.00022473,2]
[378690439,1754958743380,-446.06,0.00022473,2]
[378690440,1754958743390,-451.58,0.00022473,2]
[378690441,1754958743399,-840.46,0.00022473,2]
[378690442,1754958743409,-5484.25,0.00022473,2]
[378690443,1754958743419,-444.43,0.00022473,2]
[378690444,1754958743429,-1135.69,0.00022473,2]
[378690445,1754958743440,-473.46,0.00022473,2]
[378690446,1754958743451,-504.02,0.00022473,2]
[378690447,1754958743460,-425.72,0.00022473,2]
[378690448,1754958743471,-562.93,0.00022473,2]
[378690449,1754958743489,-485.33,0.00022473,2]
[378690450,1754958743498,-716.05,0.00022473,2]
[378690451,1754958743508,-409.81,0.00022473,2]
[378690452,1754958743518,-1367.17,0.00022473,2]
[378690453,1754958743528,-418.15,0.00022473,2]
[378690454,1754958743538,-487.67,0.00022473,2]
[378690455,1754958743548,-463.33,0.00022473,2]
[378690456,1754958743558,-456.21,0.00022473,2]
[378690457,1754958743568,-1005.19,0.00022473,2]
[378690458,1754958743577,-760.85,0.00022473,2]
[378690459,1754958743587,-461.28,0.00022473,2]
[378690460,1754958743596,-415.53,0.00022473,2]
[378690461,1754958743607,-668.63,0.00022473,2]
[378690462,1754958743617,-1056.23,0.00022473,2]
[378690463,1754958743627,-401.8,0.00022473,2]
[378690464,1754958743636,-1254.99,0.00022473,2]
[378690465,1754958743646,-416.54,0.00022473,2]
[378690466,1754958743657,-448.0,0.00022473,2]
[378690467,1754958743668,-434.77,0.00022473,2]
[378690468,1754958743678,-428.67,0.00022473,2]
[378690469,1754958743687,-1026.25,0.00022473,2]
[378690470,1754958743697,-855.22,0.00022473,2]
[378690471,1754958743707,-527.94,0.00022473,2]
[378690472,1754958743716,-690.8,0.00022473,2]
[378690473,1754958743725,-660.29,0.00022473,2]
[378690474,1754958743735,-661.7,0.00022473,2]
[378690475,1754958743746,-553.06,0.00022473,2]
[378690476,1754958743756,-689.02,0.00022473,2]
[378690477,1754958743766,-1107.19,0.00022482,2]
[378690478,1754958743775,-646.57,0.00022482,2]
[378690479,1754958743785,-739.29,0.00022482,2]
[378690480,1754958743795,-541.35,0.00022482,2]
[378690481,1754958743804,-756.83,0.00022482,2]
[378690482,1754958743815,-540.43,0.00022482,2]
[378690483,1754958743825,-880.76,0.00022482,2]
[378690484,1754958743835,-1331.32,0.00022482,2]
[378690485,1754958743844,-1152.75,0.00022482,2]
[378690486,1754958743855,-1103.08,0.00022482,2]
[378690487,1754958743866,-673.98,0.00022482,2]
[378690488,1754958743876,-667.16,0.00022482,2]
[378690489,1754958743886,-1238.08,0.00022482,2]
[378690490,1754958743896,-723.65,0.00022482,2]
[378690491,1754958743905,-741.47,0.00022482,2]
[378690492,1754958743914,-1093.69,0.00022482,2]
[378690493,1754958743924,-5867.06,0.00022482,2]
[378690494,1754958743933,-810.42,0.00022483,2]
[378690495,1754958743942,-200.0,0.00022485,2]
[378690496,1754958743951,-200.0,0.00022486,2]
[378690497,1754958743961,-200.0,0.00022486,2]
[378690498,1754958743970,-200.0,0.00022487,2]
[378690499,1754958743979,-200.0,0.00022487,2]
[378690500,1754958743989,-200.0,0.00022487,2]
[378690501,1754958743999,-200.0,0.00022487,2]
[378690502,1754958744009,-200.0,0.00022487,2]
[378690503,1754958744019,-2110.0,0.000225,2]
[378690504,1754958744028,-648.01,0.00022603,2]
[378690505,1754958744037,-1295.0,0.0002269,2]
[378690506,1754958744048,-598.0,0.0002269,2]
[378690507,1754958744057,-1042.0,0.0002269,2]
[378690508,1754958744067,-2027.0,0.0002269,2]
[378690509,1754958744077,-565.0,0.0002269,2]
[378690510,1754958744086,-1654.0,0.0002269,2]
[378690511,1754958744095,-1171.0,0.0002269,2]
[378690512,1754958744104,-6082.0,0.0002269,2]
[378690513,1754958744114,-3367.0,0.0002269,2]
[378690514,1754958744123,-716.0,0.0002269,2]
[378690515,1754958744132,-8364.401,0.0002269,2]
[378690516,1754958744141,-23763.82,0.000227,7]
[378690517,1754958744150,-1120.45,0.000227,7]
[378690518,1754958744160,-47667.63,0.000227,2]
[378690519,1754958744169,-511.55034318,0.0002271,2]
[378690520,1754958744179,-1353.75,0.00022733,2]
[378690521,1754958744189,-1368.73,0.00022733,2]
[378690522,1754958744199,-835.27,0.00022733,2]
[378690523,1754958744208,-638.05,0.00022733,2]
[378690524,1754958744218,-1206.42,0.00022733,2]
[378690525,1754958744227,-8653.14,0.00022733,2]
[378690526,1754958744237,-500.0,0.0002274,2]
[378690527,1754958744247,-594.77249626,0.00022745,2]
[378690528,1754958744256,-541.65506089,0.00022745,2]
[378690529,1754958744265,-586.36518828,0.00022745,2]
[378690530,1754958744274,-445.81612412,0.00022745,2]
[378690531,1754958744284,-555.43295817,0.00022745,2]
[378690532,1754958744294,-455.62,0.00022745,2]
[378690533,1754958744303,-528.56226702,0.00022745,2]
[378690534,1754958744312,-808.51782057,0.00022745,2]
[378690535,1754958744322,-600.98092049,0.00022745,2]
[378690536,1754958744332,-482.31128168,0.00022745,2]
[378690537,1754958744342,-611.11444901,0.00022745,2]
[378690538,1754958744352,-409.79448954,0.00022745,2]
[378690539,1754958744362,-801.009005,0.00022745,2]
[378690540,1754958744372,-574.86999748,0.00022745,2]
[378690541,1754958744381,-820.55531061,0.00022745,2]
[378690542,1754958744392,-565.43328931,0.00022745,2]
[378690543,1754958744402,-978.75560387,0.00022745,2]
[378690544,1754958744412,-573.04258809,0.00022745,2]
[378690545,1754958744422,-1278.03,0.00022745,2]
[378690546,1754958744432,-539.95703681,0.00022745,2]
[378690547,1754958744443,-422.12548787,0.00022745,2]
[378690548,1754958744453,-683.89779768,0.00022745,2]
[378690549,1754958744463,-1083.07572329,0.00022745,2]
[378690550,1754958744473,-592.25186728,0.00022745,2]
[378690551,1754958744483,-1010.12875008,0.00022745,2]
[378690552,1754958744496,-487.48626716,0.00022745,2]
[378690553,1754958744507,-480.79795666,0.00022745,2]
[378690554,1754958744516,-471.86557896,0.00022745,2]
[378690555,1754958744525,-405.40796361,0.00022745,2]
[378690556,1754958744536,-446.29868611,0.00022745,2]
[378690557,1754958744545,-482.60184412,0.00022745,2]
[378690558,1754958744555,-1964.86497151,0.00022745,2]
[378690559,1754958744565,-591.72653276,0.00022745,2]
[378690560,1754958744575,-633.09807702,0.00022745,2]
[378690561,1754958744585,-618.46,0.00022745,2]
[378690562,1754958744595,-449.02844087,0.00022745,2]
[378690563,1754958744605,-2118.13042651,0.00022745,2]
[378690564,1754958744615,-1807.52239717,0.00022745,2]
[378690565,1754958744624,-927.79816122,0.00022745,2]
[378690566,1754958744633,-609.59976685,0.00022745,2]
[378690567,1754958744643,-936.39489203,0.00022745,2]
[378690568,1754958744655,-1290.92602835,0.00022745,2]
[378690569,1754958744664,-977.47710262,0.00022745,2]
[378690570,1754958744674,-417.42166474,0.00022745,2]
[378690571,1754958744685,-833.05,0.00022745,2]
[378690572,1754958744695,-498.43094828,0.00022745,2]
[378690573,1754958744705,-543.56550359,0.00022747,2]
[378690574,1754958744715,-3558.90597804,0.00022747,2]
[378690575,1754958744725,-415.23026846,0.00022747,2]
[378690576,1754958744737,-542.08553007,0.00022747,2]
[378690577,1754958744747,-686.52570401,0.00022747,2]
[378690578,1754958744758,-843.54978806,0.00022747,2]
[378690579,1754958744767,-501.6339978,0.00022747,2]
[378690580,1754958744777,-411.48975905,0.00022747,2]
[378690581,1754958744786,-416.91168868,0.00022747,2]
[378690582,1754958744796,-674.01173336,0.00022747,2]
[378690583,1754958744806,-413.10258389,0.00022747,2]
[378690584,1754958744817,-436.0232011,0.00022747,2]
[378690585,1754958744827,-942.02045848,0.00022747,2]
[378690586,1754958744836,-416.0662747,0.00022747,2]
[378690587,1754958744846,-1019.01735019,0.00022747,2]
[378690588,1754958744856,-716.52844228,0.00022747,2]
[378690589,1754958744867,-806.8305661,0.00022747,2]
[378690590,1754958744876,-403.0948107,0.00022747,2]
[378690591,1754958744886,-487.42,0.00022747,2]
[378690592,1754958744896,-407.19699482,0.00022747,2]
[378690593,1754958744905,-924.9463791,0.00022747,2]
[378690594,1754958744915,-896.64596398,0.00022747,2]
[378690595,1754958744924,-989.57030932,0.00022747,2]
[378690596,1754958744934,-429.83325605,0.00022747,2]
[378690597,1754958744943,-446.17682979,0.00022747,2]
[378690598,1754958744952,-451.6467223,0.00022747,2]
[378690599,1754958744962,-840.62551205,0.00022747,2]
[378690600,1754958744971,-5484.3459691,0.00022747,2]
[378690601,1754958744980,-444.44422377,0.00022747,2]
[378690602,1754958744990,-1135.76669814,0.00022747,2]
[378690603,1754958744999,-473.60149758,0.00022747,2]
[378690604,1754958745010,-504.05645808,0.00022747,2]
[378690605,1754958745019,-425.73337492,0.00022747,2]
[378690606,1754958745029,-562.96843871,0.00022747,2]
[378690607,1754958745039,-485.50592909,0.00022747,2]
[378690608,1754958745049,-716.1285722,0.00022747,2]
[378690609,1754958745059,-409.8580047,0.00022747,2]
[378690610,1754958745069,-1367.33498843,0.00022747,2]
[378690611,1754958745079,-418.29637142,0.00022747,2]
[378690612,1754958745088,-487.90782253,0.00022747,2]
[378690613,1754958745098,-463.43885291,0.00022747,2]
[378690614,1754958745107,-456.22579211,0.00022747,2]
[378690615,1754958745117,-1005.19867781,0.00022747,2]
[378690616,1754958745126,-760.93534833,0.00022747,2]
[378690617,1754958745135,-461.32295783,0.00022747,2]
[378690618,1754958745145,-415.5755555,0.00022747,2]
[378690619,1754958745155,-668.69400844,0.00022747,2]
[378690620,1754958745164,-1056.42038677,0.00022747,2]
[378690621,1754958745174,-402.00406735,0.00022747,2]
[378690622,1754958745183,-1255.20860834,0.00022747,2]
[378690623,1754958745193,-416.6435973,0.00022747,2]
[378690624,1754958745202,-448.21629128,0.00022747,2]
[378690625,1754958745211,-435.00557111,0.00022747,2]
[378690626,1754958745221,-428.90031942,0.00022747,2]
[378690627,1754958745231,-1026.31883305,0.00022747,2]
[378690628,1754958745241,-855.23507133,0.00022747,2]
[378690629,1754958745251,-528.15481188,0.00022747,2]
[378690630,1754958745260,-690.84095663,0.00022747,2]
[378690631,1754958745270,-660.40949474,0.00022747,2]
[378690632,1754958745279,-661.78677514,0.00022747,2]
[378690633,1754958745288,-553.15675331,0.00022747,2]
[378690634,1754958745298,-1107.33236942,0.00022756,2]
[378690635,1754958745307,-646.66256332,0.00022756,2]
[378690636,1754958745317,-739.31201126,0.00022756,2]
[378690637,1754958745328,-541.44345419,0.00022756,2]
[378690638,1754958745338,-756.88044973,0.00022756,2]
[378690639,1754958745347,-540.44522296,0.00022756,2]
[378690640,1754958745356,-880.90980794,0.00022756,2]
[378690641,1754958745366,-1331.43771079,0.00022756,2]
[378690642,1754958745375,-1152.76810248,0.00022756,2]
[378690643,1754958745385,-1103.30931587,0.00022756,2]
[378690644,1754958745395,-674.17018325,0.00022756,2]
[378690645,1754958745404,-667.2081511,0.00022756,2]
[378690646,1754958745414,-1238.19092469,0.00022756,2]
[378690647,1754958745424,-723.74095478,0.00022756,2]
[378690648,1754958745433,-741.48000007,0.00022756,2]